bitfinex/quotes_ETHUSD_20260209
["timestamp","ask_amount","ask_price","bid_price","bid_amount"]
[1770649241885,0.002,2049.9,2049.0,1.22010215]
[1770649242096,0.002,2049.9,2049.0,1.22010681]
[1770649242293,0.002,2049.9,2048.8,2.92465903]
[1770649242610,0.002,2049.9,2049.2,2.92365903]
[1770649242984,0.002,2049.9,2048.8,4.14485633]
[1770649243489,0.002,2049.9,2048.8,0.001]
[1770649243490,0.0735222,2049.7,2048.8,0.001]
[1770649244483,0.0735222,2049.4,2048.4,2.92365903]
[1770649244717,0.0735222,2049.3,2048.3,1.22047021]
[1770649244918,0.0735222,2049.3,2048.4,1.22045033]
[1770649245089,0.0735222,2049.3,2048.1,2.92365903]
[1770649245090,1.21998828,2049.2,2048.3,2.92365903]
[1770649245617,1.21975019,2049.6,2048.3,2.92365903]
[1770649246820,1.21967872,2049.8,2048.3,2.99718123]
[1770649247186,0.002,2049.9,2048.5,2.98821076]
[1770649248135,0.0735222,2049.7,2049.0,0.001]
[1770649248295,0.0755222,2049.7,2049.0,0.001]
[1770649248713,0.002,2049.7,2049.0,0.001]
[1770649249187,0.002,2049.7,2049.0,1.22110736]
[1770649249392,0.002,2049.7,2049.0,0.001]
[1770649249595,0.0735222,2049.6,2049.0,0.001]
[1770649250633,0.0735222,2049.6,2048.4,2.98821076]
[1770649250997,0.0735222,2049.6,2048.4,4.20864138]
[1770649251217,0.0735222,2049.0,2047.9,2.98821076]
[1770649251536,0.0735222,2049.3,2047.9,2.98821076]
[1770649251537,3.41,2049.1,2047.9,2.98821076]
[1770649251722,3.41,2049.1,2047.6,1.22089252]
[1770649251723,0.0735222,2048.9,2047.6,1.22089252]
[1770649251903,0.0735222,2048.6,2047.5,4.2091887]
[1770649252227,0.0735222,2048.9,2047.7,1.22085297]
[1770649252429,0.0735222,2048.5,2047.2,0.001]
[1770649252595,0.0735222,2047.9,2047.2,0.001]
[1770649253096,1.22082234,2047.8,2047.0,0.001]
[1770649253297,1.22082234,2047.8,2046.7,4.20458889]
[1770649253628,0.0735222,2047.6,2046.3,2.98821076]
[1770649253924,0.0735222,2047.3,2046.3,2.98821076]
[1770649254135,0.0735222,2047.0,2045.8,2.98821076]
[1770649254329,3.41,2046.9,2045.8,2.98821076]
[1770649254541,3.41,2047.2,2046.4,2.98821076]
[1770649254701,3.41,2047.2,2046.4,4.20986661]
[1770649254899,3.41,2047.2,2046.4,2.98821076]
[1770649255203,1.22129946,2047.0,2046.0,4.8875713]
[1770649255723,1.22129946,2047.0,2046.1,2.98921076]
[1770649256336,1.22121154,2047.2,2046.1,2.98921076]
[1770649256536,1.29440416,2047.8,2046.2,2.98821076]
[1770649256704,0.0735222,2047.1,2046.1,0.001]
[1770649256898,3.4845222,2047.1,2046.1,0.001]
[1770649257105,1.22147847,2046.7,2046.1,0.001]
[1770649257626,4.95824408,2047.2,2046.1,2.98921076]
[1770649257831,4.95824408,2047.2,2046.1,0.001]
[1770649258003,8.29672188,2047.2,2046.1,2.98921076]
[1770649258326,0.0735222,2047.0,2046.1,2.98921076]
[1770649258544,0.0735222,2046.9,2046.1,2.98921076]
[1770649258699,0.2335703,2047.1,2046.1,2.98921076]
[1770649258897,0.0735222,2046.9,2046.1,0.001]
[1770649259422,0.0735222,2046.6,2046.1,0.001]
[1770649259622,0.0735222,2046.3,2045.3,2.98921076]
[1770649259836,0.0735222,2046.3,2045.5,1.22217994]
[1770649260053,3.412,2046.5,2045.6,1.22208339]
[1770649260239,1.2214188,2046.8,2045.7,4.21026681]
[1770649260430,3.412,2046.7,2045.7,4.21026681]
[1770649261045,3.412,2046.7,2045.8,2.98821076]
[1770649261262,0.1024,2047.2,2045.8,2.98821076]
[1770649261263,4.8836991,2047.7,2046.3,2.98921076]
[1770649261557,8.2956991,2047.7,2046.3,2.98921076]
[1770649262046,3.412,2047.7,2046.5,2.98821076]
[1770649262422,1.22046475,2048.4,2046.5,2.98821076]
[1770649262618,4.63346475,2048.4,2046.7,2.98821076]
[1770649262815,0.0735222,2048.3,2046.7,2.98821076]
[1770649263263,0.0735222,2048.0,2046.7,2.98821076]
[1770649263465,1.22076273,2047.9,2046.8,4.20962956]
[1770649263753,0.0735222,2047.7,2046.4,2.98821076]
[1770649263950,3.413,2047.6,2046.5,7.87444038]
[1770649264169,0.0735222,2047.5,2046.5,1.22158522]
[1770649264364,3.413,2047.6,2046.7,1.22145238]
[1770649264520,3.413,2047.6,2046.8,2.98821076]
[1770649265347,3.413,2047.6,2046.9,1.22135912]
[1770649265551,4.63394161,2047.6,2047.0,2.98821076]
[1770649265757,4.8823357,2048.4,2047.0,2.98821076]
[1770649265957,3.413,2048.2,2047.0,2.98821076]
[1770649267542,4.63362787,2048.2,2047.2,2.98821076]
[1770649267854,4.70715007,2048.2,2047.2,2.98821076]
[1770649268057,4.63362787,2048.2,2047.2,2.98821076]
[1770649268552,3.413,2048.2,2047.2,2.98821076]
[1770649268733,4.63359593,2048.2,2047.2,2.98821076]
[1770649269940,4.63359593,2048.2,2047.2,4.20934858]
[1770649270136,3.413,2048.2,2047.3,2.98821076]
[1770649270338,1.22022647,2048.8,2047.3,2.98821076]
[1770649270668,0.0735222,2048.3,2047.2,1.2211792]
[1770649270835,0.0735222,2048.3,2047.2,1.2211708]
[1770649271232,0.0735222,2048.3,2047.2,4.20938156]
[1770649271436,0.0735222,2048.3,2047.2,2.98821076]
[1770649271659,0.0735222,2048.0,2046.8,2.98821076]
[1770649271854,0.2335703,2048.5,2047.5,2.98821076]
[1770649271855,1.22040517,2048.5,2047.5,2.98821076]
[1770649272065,1.22040517,2048.5,2047.6,3.83]
[1770649272455,0.0735222,2048.4,2047.6,3.83]
[1770649272739,1.22040517,2048.5,2047.6,6.81821076]
[1770649273942,4.88162069,2048.6,2047.6,6.81821076]
[1770649274146,0.0735222,2048.4,2047.4,3.83]
[1770649274383,4.88162069,2048.6,2047.6,1.22092854]
[1770649274673,4.88162069,2048.6,2047.5,2.98821076]
[1770649274873,4.88162069,2048.6,2047.6,4.20912229]
[1770649275078,0.002,2048.3,2047.6,2.98821076]
[1770649275369,0.0735222,2048.2,2047.4,3.83]
[1770649275570,0.002,2048.3,2047.4,3.83]
[1770649275759,0.0735222,2048.2,2047.4,3.83]
[1770649275962,1.22064352,2048.1,2047.3,3.83]
[1770649277051,1.22064352,2048.1,2047.3,5.05107137]
[1770649277260,1.22064352,2048.1,2047.3,3.83]
[1770649277455,1.22064352,2048.1,2047.3,7.89448015]
[1770649277662,4.88457409,2048.3,2047.5,2.84336838]
[1770649277663,1.22253021,2048.3,2047.5,2.84336838]
[1770649277965,0.002,2048.3,2047.5,2.84336838]
[1770649278164,0.002,2048.3,2047.7,2.84336838]
[1770649278574,0.002,2048.3,2047.9,2.84336838]
[1770649278753,16.40128788,2049.6,2048.1,2.84336838]
[1770649278754,1.21992875,2049.3,2048.1,2.84336838]
[1770649278952,4.70645095,2049.3,2048.3,2.84336838]
[1770649279155,4.70645095,2049.3,2048.4,3.83]
[1770649279561,4.63292875,2049.3,2048.5,6.74861587]
[1770649279795,4.63292875,2049.3,2048.6,3.83]
[1770649279951,4.88163378,2049.4,2048.6,2.91861587]
[1770649279952,0.002,2049.4,2048.6,2.91861587]
[1770649280279,0.002,2049.4,2048.8,2.91861587]
[1770649281279,0.002,2049.4,2048.7,2.91861587]
[1770649282246,0.002,2049.4,2048.9,2.91861587]
[1770649283692,0.002,2049.4,2047.9,4.88284553]
[1770649283693,0.0735222,2049.3,2048.3,2.91861587]
[1770649283853,0.002,2049.4,2048.3,2.91861587]
[1770649284054,0.002,2049.4,2048.8,2.91861587]
[1770649284255,0.002,2049.4,2048.8,4.13883732]
[1770649284566,0.002,2049.4,2048.9,2.91861587]
[1770649284756,4.6345422,2050.0,2048.9,2.91861587]
[1770649286475,1.21963118,2049.8,2048.9,4.13873519]
[1770649286666,1.21963118,2049.8,2048.9,2.91861587]
[1770649286886,1.21963118,2049.8,2048.8,1.22017817]
[1770649287094,1.21963118,2049.8,2048.5,2.91861587]
[1770649287289,0.0735222,2049.6,2048.5,2.91861587]
[1770649287473,0.0735222,2049.6,2048.6,1.22031906]
[1770649287675,0.2335703,2049.7,2048.8,1.22019629]
[1770649287896,1.21963118,2049.8,2048.9,1.22015512]
[1770649288101,1.21963118,2049.8,2048.8,4.1387999]
[1770649288305,1.21963118,2049.8,2048.8,2.91861587]
[1770649288502,0.0735222,2049.6,2048.6,4.88137144]
[1770649288802,1.21963118,2049.8,2048.8,1.22121378]
[1770649289002,1.22163118,2049.8,2048.8,1.22121378]
[1770649289200,1.22163118,2049.8,2048.9,2.91861587]
[1770649289777,8.29452473,2050.0,2048.9,2.91861587]
[1770649289778,0.005,2050.0,2048.9,2.91861587]
[1770649289978,0.003,2050.5,2049.9,2.91861587]
[1770649290315,0.1686892,2051.3,2050.2,2.91861587]
[1770649290483,0.1686892,2051.3,2050.4,2.91861587]
[1770649291317,8.3180791,2052.2,2050.6,2.91861587]
[1770649291318,0.0342,2052.2,2050.6,2.91861587]
[1770649291610,0.0342,2052.2,2050.4,10.56229674]
[1770649291611,1.25243405,2052.2,2051.1,2.91861587]
[1770649291913,0.0342,2052.2,2051.1,2.91861587]
[1770649292301,0.0735222,2053.4,2051.5,0.0735222]
[1770649292480,1.460391,2054.3,2051.5,0.0735222]
[1770649292481,1.57264121,2056.1,2053.2,2.91861587]
[1770649292678,1.57264121,2056.1,2054.6,0.25386411]
[1770649292876,1.45875253,2056.6,2054.6,0.17480728]
[1770649292877,0.1346892,2055.3,2054.6,0.17480728]
[1770649293102,0.0735222,2054.9,2053.3,10.48877454]
[1770649293304,1.35106438,2055.3,2053.5,6.32861587]
[1770649293482,0.0735222,2054.7,2052.9,2.91861587]
[1770649293674,0.39577025,2055.2,2053.1,2.91861587]
[1770649293874,1.35106438,2055.3,2053.4,2.91861587]
[1770649294112,1.42458658,2055.3,2053.4,2.91861587]
[1770649294289,0.0735222,2054.7,2053.4,2.91861587]
[1770649294486,0.0735222,2053.8,2052.9,2.91861587]
[1770649294715,0.0735222,2054.1,2052.6,0.25337152]
[1770649294716,0.0735222,2053.6,2052.6,0.25337152]
[1770649294905,0.0735222,2053.5,2052.6,0.25337152]
[1770649295219,4.86712742,2054.7,2052.9,2.91861587]
[1770649295508,8.27483895,2055.2,2053.4,4.13607163]
[1770649295807,10.9759238,2054.8,2053.0,3.409]
[1770649295980,0.0735222,2054.9,2053.0,3.4825222]
[1770649296178,8.34836115,2055.2,2053.4,1.21748552]
[1770649296378,1.35107383,2055.3,2053.9,2.91861587]
[1770649296598,1.35107383,2055.3,2053.6,1.21737436]
[1770649296599,1.35106562,2055.3,2054.1,2.91861587]
[1770649296804,1.42458782,2055.3,2053.6,2.91861587]
[1770649297003,4.83258782,2055.3,2053.6,2.91861587]
[1770649297208,4.83258782,2055.3,2053.9,0.0735222]
[1770649297209,1.35106562,2055.3,2053.9,0.0735222]
[1770649297382,1.35107141,2055.3,2053.9,2.91861587]
[1770649298113,12.50882409,2055.7,2053.6,0.0735222]
[1770649298114,4.86239424,2056.7,2054.7,2.99213807]
[1770649298419,4.86176637,2056.9,2055.2,1.21642662]
[1770649298581,4.86176637,2056.9,2055.4,2.99213807]
[1770649298781,4.63237842,2057.0,2056.0,0.0735222]
[1770649298782,0.00995716,2057.0,2056.0,0.0735222]
[1770649299013,0.13724629,2057.1,2056.1,2.91861587]
[1770649299313,0.0735222,2057.9,2056.3,2.91861587]
[1770649299516,0.0735222,2057.8,2056.3,2.91861587]
[1770649299812,0.0735222,2058.0,2056.3,2.91861587]
[1770649300216,2.97901293,2057.9,2055.7,2.99213807]
[1770649300389,7.83786332,2058.4,2056.2,2.91861587]
[1770649300587,7.83786332,2058.4,2056.0,4.93709887]
[1770649300588,7.83786332,2058.3,2056.0,1.21593693]
[1770649300814,0.0735222,2058.1,2056.0,4.1345528]
[1770649301016,4.85885039,2058.3,2056.1,2.99213807]
[1770649301312,4.85885039,2058.3,2056.4,2.91861587]
[1770649301518,4.85885039,2058.3,2056.1,0.0735222]
[1770649301519,0.0735222,2058.1,2056.1,0.0735222]
[1770649301718,7.83786332,2058.3,2056.7,0.0735222]
[1770649301927,1.21441756,2058.6,2057.3,0.0735222]
[1770649302131,0.002,2057.8,2057.0,0.0735222]
[1770649302330,0.002,2057.8,2056.5,2.99213807]
[1770649302633,0.002,2057.8,2057.1,0.0735222]
[1770649302815,0.002,2057.8,2056.5,2.99213807]
[1770649302988,0.002,2057.8,2056.5,2.91861587]
[1770649303193,0.1024,2058.4,2056.5,2.91861587]
[1770649303194,1.21441756,2058.6,2057.4,0.0735222]
[1770649303428,0.0735222,2058.6,2056.8,1.21547512]
[1770649303716,3.403,2058.5,2056.5,0.0735222]
[1770649303923,0.1024,2058.1,2056.5,0.0735222]
[1770649304144,0.0735222,2058.0,2056.3,3.403]
[1770649304341,0.0735222,2057.7,2056.3,1.21575832]
[1770649304502,1.28852997,2057.6,2056.2,1.2157759]
[1770649304704,1.28835285,2057.9,2056.3,4.86305993]
[1770649304920,0.0735222,2058.3,2056.4,6.32061587]
[1770649305329,4.89220624,2058.7,2056.9,0.0735222]
[1770649305330,0.0343,2058.7,2056.9,0.0735222]
[1770649305493,0.0343,2058.7,2056.9,6.6019939]
[1770649305494,0.0735222,2058.5,2056.9,6.6019939]
[1770649305692,0.0343,2058.7,2057.0,3.1999939]
[1770649305916,0.0735222,2058.6,2057.0,3.1999939]
[1770649306417,0.0735222,2058.3,2057.0,3.1999939]
[1770649306726,0.0735222,2058.0,2056.9,4.6174023]
[1770649307125,1e-08,2058.7,2057.7,3.1999939]
[1770649307424,3.4745222,2060.5,2057.8,3.3023939]
[1770649307620,1.34864791,2059.4,2058.1,3.1999939]
[1770649307823,0.0735222,2059.0,2057.6,3.1999939]
[1770649308021,0.0735222,2058.6,2057.1,3.1999939]
[1770649308197,0.0735222,2058.5,2057.1,3.1999939]
[1770649308392,0.0735222,2058.5,2056.9,1.2154023]
[1770649308398,0.0735222,2057.9,2056.9,1.2154023]
[1770649308589,1.21471259,2058.1,2056.7,4.86168506]
[1770649308789,1.21447921,2058.5,2056.9,3.1999939]
[1770649309104,0.0735222,2058.4,2056.9,3.1999939]
[1770649309304,1.21441756,2058.6,2056.9,3.1999939]
[1770649309501,1.21438611,2058.7,2056.9,3.1999939]
[1770649310021,0.0735222,2059.3,2056.9,3.1999939]
[1770649310022,1.28752695,2059.3,2057.5,0.1024]
[1770649310323,1.34866996,2059.4,2057.9,0.0735222]
[1770649310521,1.34866996,2059.4,2057.5,3.3759161]
[1770649310723,0.0735222,2059.1,2057.6,1.21500777]
[1770649310905,0.0735222,2059.0,2057.6,1.21500777]
[1770649311122,0.0735222,2058.9,2057.5,1.21505383]
[1770649311424,0.0735222,2058.5,2057.4,3.399]
[1770649311593,0.0735222,2058.0,2056.7,3.1999939]
[1770649311921,0.0735222,2058.2,2056.7,3.1999939]
[1770649312126,0.0735222,2057.9,2057.0,1.21535532]
[1770649312294,0.0735222,2058.2,2056.7,4.86209303]
[1770649312500,0.0735222,2058.1,2057.3,1.21515339]
[1770649312792,1.21459456,2058.3,2056.5,4.86253006]
[1770649312997,0.0735222,2058.1,2056.5,4.86253006]
[1770649313198,0.0735222,2057.8,2056.5,4.86253006]
[1770649313598,0.0735222,2057.5,2056.5,4.41380431]
[1770649314025,3.02224059,2058.0,2056.5,4.41380431]
[1770649314227,3.02224059,2058.0,2056.5,1.21565767]
[1770649314426,3.02224059,2058.0,2055.1,5.154]
[1770649314427,0.0735222,2057.4,2055.1,5.154]
[1770649314633,0.0735222,2057.4,2052.6,15.66675994]
[1770649314634,4.31124314,2056.8,2054.8,4.86648684]
[1770649314935,4.31124314,2056.8,2055.1,0.0735222]
[1770649314936,3.02224059,2056.7,2055.1,0.0735222]
[1770649315162,3.02224059,2056.7,2054.5,4.86665368]
[1770649315163,13.99816439,2056.0,2053.9,0.0735222]
[1770649315318,3.02224059,2056.0,2054.4,1.21686919]
[1770649315657,3.02224059,2056.0,2053.8,0.0735222]
[1770649315801,6.42024059,2056.0,2054.1,0.0735222]
[1770649316002,6.42024059,2056.0,2054.1,4.94182411]
[1770649316203,0.0735222,2055.5,2054.1,1.21703834]
[1770649316549,0.0735222,2055.9,2054.5,1.21679019]
[1770649316703,1.2160716,2055.8,2054.2,4.86803863]
[1770649317011,0.0735222,2055.4,2054.1,1.21706728]
[1770649317207,0.0735222,2055.2,2054.0,1.2171119]
[1770649317426,0.0735222,2055.2,2054.1,1.21707071]
[1770649317727,0.0735222,2055.6,2054.1,1.21707071]
[1770649317934,0.0735222,2055.6,2053.3,4.87107382]
[1770649317935,0.0735222,2054.7,2053.3,4.87107382]
[1770649318232,0.0735222,2055.1,2053.4,4.86987709]
[1770649318421,0.0735222,2054.8,2054.0,1.21711009]
[1770649318621,0.0735222,2055.1,2053.3,0.001]
[1770649318622,1.21690031,2054.4,2053.3,0.001]
[1770649318819,1.21688471,2054.5,2053.3,0.001]
[1770649319006,0.0735222,2054.4,2053.3,0.001]
[1770649319615,4.94088652,2054.8,2053.3,0.001]
[1770649319616,1.21618992,2055.6,2053.9,0.0735222]
[1770649319819,0.0735222,2056.3,2054.2,3.2735161]
[1770649319820,1.21583503,2056.2,2054.2,3.2735161]
[1770649320018,1.21565767,2056.5,2054.5,3.2735161]
[1770649320253,15.83718172,2057.1,2054.5,3.2735161]
[1770649320254,4.86069849,2057.4,2055.2,3.2674156]
[1770649320415,1.21506682,2057.5,2055.9,0.0735222]
[1770649320617,1.21506682,2057.5,2055.4,1.21630826]
[1770649320618,0.0735222,2057.2,2055.4,1.21630826]
[1770649320850,1.21506682,2057.5,2055.5,3.2735161]
[1770649321435,0.0735222,2057.3,2055.5,3.1999939]
[1770649321634,0.0735222,2057.0,2055.5,3.399]
[1770649321840,0.0735222,2057.4,2055.5,3.399]
[1770649322022,0.0735222,2056.8,2055.4,1.21630826]
[1770649322627,1.21571678,2056.4,2055.0,4.86603214]
[1770649323264,0.0735222,2057.1,2055.0,4.86603214]
[1770649323265,1.21524402,2057.3,2055.5,0.0735222]
[1770649323467,0.0735222,2057.1,2055.2,3.2735161]
[1770649323651,0.0735222,2057.2,2055.2,3.2735161]
[1770649323979,0.0735222,2056.6,2055.2,3.1999939]
[1770649324270,0.0735222,2056.6,2055.0,4.86603214]
[1770649324779,1.21565767,2056.5,2055.0,4.86603214]
[1770649325060,0.0735222,2056.4,2055.0,4.86603214]
[1770649325232,1.21565767,2056.5,2055.0,4.86603214]
[1770649325434,0.0735222,2056.3,2055.0,4.86603214]
[1770649325744,1.21565767,2056.5,2054.9,1.21659493]
[1770649325942,0.0735222,2056.3,2054.9,1.21659493]
[1770649326345,0.0735222,2056.4,2054.9,1.21659493]
[1770649326838,1.2157759,2056.3,2054.6,1.21678185]
[1770649327042,0.0735222,2055.8,2054.6,1.21678185]
[1770649327262,1.2157759,2056.3,2054.6,1.21678185]
[1770649327467,1.2157759,2056.3,2054.5,4.86641685]
[1770649327468,0.0735222,2055.8,2054.5,1.2167973]
[1770649327768,1.2157759,2056.3,2054.5,1.2167973]
[1770649327969,1.21559856,2056.6,2054.8,0.0735222]
[1770649328150,0.0735222,2056.5,2054.5,1.2903195]
[1770649328340,0.0735222,2055.8,2054.5,1.2167973]
[1770649328677,0.0735222,2055.8,2054.2,4.86801336]
[1770649328678,1.21613075,2055.7,2054.2,4.86801336]
[1770649328959,1.28965295,2055.7,2054.1,1.21707803]
[1770649329142,0.0735222,2055.4,2054.1,1.21707803]
[1770649329341,0.0735222,2055.3,2054.1,1.21707803]
[1770649329660,1.21613075,2055.7,2054.1,1.21707803]
[1770649329971,0.0735222,2055.4,2055.1,0.001]
[1770649330273,1.28965295,2055.7,2054.9,0.001]
[1770649330458,0.0735222,2055.6,2054.9,0.001]
[1770649330778,1.21642662,2055.2,2053.8,1.21725581]
[1770649331079,1.21642662,2055.2,2054.0,0.001]
[1770649331875,0.0735222,2055.0,2054.0,0.001]
[1770649332169,0.0735222,2054.9,2054.0,0.001]
[1770649332373,0.0735222,2054.9,2052.9,3.399]
[1770649332374,0.0735222,2054.2,2052.9,3.399]
[1770649332544,0.0735222,2054.2,2052.7,4.87145511]
[1770649332545,3.09576279,2054.5,2053.3,4.87119161]
[1770649332745,1.21690031,2054.4,2053.3,0.001]
[1770649332976,0.0735222,2054.3,2053.3,0.001]
[1770649333145,0.0735222,2054.0,2053.3,0.001]
[1770649333709,0.0735222,2054.2,2053.3,0.001]
[1770649333995,0.0735222,2055.5,2053.7,3.1999939]
[1770649334352,0.0735222,2055.1,2053.3,0.001]
[1770649334771,0.0735222,2054.8,2053.3,1.21855223]
[1770649334999,1.21636744,2055.3,2053.4,0.0735222]
[1770649335180,0.0735222,2055.1,2053.3,1.21855223]
[1770649335675,0.0735222,2054.9,2053.3,1.21855223]
[1770649335875,1.21636744,2055.3,2053.3,1.21855223]
[1770649336082,1.21636744,2055.3,2053.8,0.0735222]
[1770649336617,0.0735222,2055.2,2053.3,1.29207443]
[1770649336911,0.0735222,2054.9,2053.3,1.21855223]
[1770649337214,1.21648581,2055.1,2053.3,1.21855223]
[1770649337906,1.21648581,2055.1,2053.4,0.0735222]
[1770649338086,0.0735222,2054.9,2053.3,1.21855223]
[1770649338289,0.0735222,2054.8,2053.3,1.21855223]
[1770649338611,1.21648581,2055.1,2053.3,1.21855223]
[1770649338810,1.21648581,2055.1,2053.3,0.001]
[1770649338811,1.21713729,2054.0,2053.3,0.001]
[1770649339197,1.29065949,2054.0,2053.3,0.001]
[1770649339501,4.86812067,2054.2,2053.3,0.001]
[1770649339676,4.86693722,2054.7,2053.3,0.001]
[1770649339880,1.29030405,2054.6,2053.3,0.001]
[1770649340291,0.0735222,2054.3,2053.3,0.001]
[1770649340501,1.29030405,2054.6,2053.3,0.001]
[1770649340703,0.0735222,2054.3,2053.3,0.001]
[1770649341104,1.21678185,2054.6,2053.3,0.001]
[1770649341512,0.0735222,2054.3,2053.3,0.001]
[1770649341686,1.29030405,2054.6,2053.3,0.001]
[1770649341892,0.0735222,2054.3,2053.3,0.001]
[1770649342300,0.0735222,2054.5,2053.3,0.001]
[1770649342517,1.21678185,2054.6,2053.3,0.001]
[1770649342719,1.29030405,2054.6,2053.3,0.001]
[1770649343024,1.21701879,2054.2,2053.3,0.001]
[1770649343330,0.0735222,2053.7,2053.0,0.001]
[1770649343618,3.401,2054.1,2053.0,0.001]
[1770649343792,0.0735222,2054.0,2053.0,0.001]
[1770649344393,3.401,2054.1,2053.0,0.001]
[1770649344608,0.0735222,2054.0,2053.0,0.001]
[1770649345210,1.21719655,2053.9,2053.0,0.001]
[1770649345796,0.0735222,2053.7,2053.0,0.001]
[1770649346197,0.0735222,2053.4,2052.4,0.001]
[1770649346401,3.4755222,2053.4,2052.4,0.001]
[1770649346900,0.0735222,2053.1,2052.4,0.001]
[1770649347316,1.21773015,2053.0,2052.4,0.001]
[1770649348309,4.8704404,2053.3,2052.4,0.001]
[1770649348892,0.0735222,2053.1,2052.4,0.001]
[1770649349123,4.8704404,2053.3,2052.4,0.001]
[1770649349307,1.21773015,2053.0,2052.4,0.001]
[1770649350009,1.21755223,2053.3,2052.4,0.001]
[1770649352198,1.29107443,2053.3,2052.4,0.001]
[1770649353126,1.21755223,2053.3,2052.4,0.001]
[1770649356895,1.21755223,2053.3,2052.6,0.001]
[1770649357103,3.402,2053.4,2052.6,0.001]
[1770649357306,1.21725581,2053.8,2052.6,0.001]
[1770649357715,1.21725581,2053.8,2052.6,1.21896745]
[1770649357916,0.0735222,2053.6,2052.6,0.001]
[1770649358109,3.4765222,2053.6,2052.6,0.001]
[1770649358631,0.0735222,2053.3,2052.6,0.001]
[1770649358828,0.0735222,2053.0,2052.4,0.001]
[1770649359434,3.53921185,2053.3,2052.4,0.001]
[1770649359730,1.31965581,2053.8,2052.4,0.001]
[1770649359731,3.403,2053.5,2052.4,0.001]
[1770649359930,0.0735222,2053.4,2052.4,0.001]
[1770649360231,6.86868965,2053.5,2051.7,1.21850173]
[1770649360416,0.0735222,2053.4,2051.8,0.0735222]
[1770649360727,0.0735222,2053.4,2051.7,1.21850173]
[1770649361414,0.0735222,2053.0,2051.7,1.21850173]
[1770649361609,1.21778946,2052.9,2051.6,4.87400692]
[1770649361933,1.21778946,2052.9,2051.5,8.40789151]
[1770649362140,0.0735222,2052.3,2050.9,3.53388459]
[1770649362309,3.404,2052.8,2051.4,1.21867515]
[1770649362631,10.97846135,2052.5,2051.2,1.21879073]
[1770649362813,10.97846135,2052.5,2051.2,1.21877054]
[1770649363007,10.97846135,2052.5,2051.2,4.87504603]
[1770649363205,10.97846135,2052.5,2051.3,1.21870965]
[1770649363424,3.46568965,2052.7,2051.4,1.21865446]
[1770649363606,1.21796745,2052.6,2051.1,0.0735222]
[1770649363808,3.46568965,2052.5,2050.9,1.21895449]
[1770649364041,3.404,2052.4,2051.3,1.21873034]
[1770649364338,4.87125758,2052.9,2051.6,0.0735222]
[1770649364738,3.404,2053.1,2051.9,0.0735222]
[1770649364916,1.21773015,2053.0,2051.9,0.0735222]
[1770649365526,1.21749293,2053.4,2051.9,3.62196694]
[1770649365712,1.21749293,2053.4,2052.0,1.21832358]
[1770649366839,14.44798376,2053.0,2051.8,1.21843846]
[1770649367134,3.404,2052.9,2051.9,1.21836816]
[1770649367711,1.21784879,2052.8,2051.6,4.87421787]
[1770649367910,4.86945655,2053.8,2052.0,0.0735222]
[1770649368140,3.404,2053.7,2052.0,0.0735222]
[1770649368313,3.404,2053.7,2052.3,0.0735222]
[1770649368743,1.21695954,2054.3,2052.7,0.0735222]
[1770649369044,1.21695954,2054.3,2052.7,3.62196694]
[1770649369814,0.002,2054.4,2052.8,1.21784879]
[1770649370107,0.002,2054.4,2053.0,0.0735222]
[1770649370529,0.002,2053.1,2053.0,0.0735222]
[1770649370840,0.002,2054.4,2053.0,3.62196694]
[1770649371044,0.002,2053.3,2053.0,3.62196694]
[1770649371257,0.002,2053.3,2053.0,3.54844474]
[1770649371414,0.002,2053.3,2052.7,1.21790075]
[1770649371737,0.002,2053.3,2052.7,1.21789922]
[1770649371918,1.21716844,2054.0,2052.7,3.62196694]
[1770649372239,4.86793239,2054.3,2052.8,6.95244474]
[1770649372441,4.86793239,2054.3,2052.8,3.404]
[1770649372662,0.0735222,2054.2,2052.8,3.404]
[1770649372853,3.54304461,2054.2,2052.4,3.54844474]
[1770649373222,4.86793239,2054.3,2052.5,3.62196694]
[1770649374047,1.21895954,2054.4,2052.6,1.21796745]
[1770649374357,0.0735222,2053.7,2052.4,4.87186982]
[1770649374674,0.0735222,2054.2,2052.4,4.87186982]
[1770649374675,14.52150596,2054.2,2052.5,1.21801894]
[1770649374830,3.54304461,2054.2,2052.5,1.21801894]
[1770649375465,3.46952241,2054.2,2052.5,1.21801894]
[1770649375828,0.0735222,2054.1,2052.5,1.21801894]
[1770649376032,1.21713729,2054.0,2052.4,4.87186982]
[1770649376677,0.002,2054.4,2052.5,3.62196694]
[1770649376831,0.002,2054.4,2052.8,3.62196694]
[1770649376832,1.21695954,2054.3,2052.8,3.62196694]
[1770649377428,1.21695954,2054.3,2052.5,0.0735222]
[1770649377429,3.46952241,2054.2,2052.5,0.0735222]
[1770649377737,6.94704461,2054.2,2052.4,4.87186982]
[1770649378731,4.68660044,2054.1,2052.4,4.87186982]
[1770649379552,1.21707803,2054.1,2052.4,8.42031456]
[1770649379758,1.21707803,2054.1,2052.5,3.62196694]
[1770649380137,1.21097753,2054.1,2052.5,3.62196694]
[1770649380449,1.2048717,2054.1,2052.5,3.54844474]
[1770649380855,1.2048717,2054.1,2052.6,1.21796745]
[1770649381163,4.74791631,2054.1,2052.6,1.21796745]
[1770649381366,3.46952241,2054.0,2052.5,1.21801699]
[1770649381544,1.2048717,2054.1,2052.5,1.21801699]
[1770649382165,1.2048717,2054.1,2052.5,1.29153919]
[1770649382383,1.2783939,2054.1,2052.5,1.21801699]
[1770649382537,4.74791631,2054.1,2052.5,1.21801699]
[1770649382738,4.67439411,2054.1,2052.5,1.21801699]
[1770649382973,1.2048717,2054.1,2052.8,0.0735222]
[1770649383454,1.2048717,2054.1,2052.8,3.62196694]
[1770649383660,1.2048717,2054.1,2052.5,4.83998393]
[1770649383964,1.2048717,2054.1,2052.8,3.62196694]
[1770649384267,0.002,2053.9,2052.8,3.54844474]
[1770649384632,0.002,2053.9,2052.7,0.001]
[1770649384865,0.002,2053.9,2052.8,1.21784879]
[1770649385747,0.002,2053.9,2052.7,4.87239516]
[1770649385748,0.002,2053.9,2052.7,0.001]
[1770649385945,3.47152241,2053.9,2052.7,0.001]
[1770649386284,3.54304461,2053.8,2052.7,0.001]
[1770649386574,3.46952241,2053.8,2052.7,1.21890212]
[1770649386740,3.46952241,2053.8,2052.7,0.001]
[1770649387067,1.21731508,2053.7,2052.7,0.001]
[1770649387363,3.46952241,2053.6,2052.7,0.001]
[1770649387750,1.21731508,2053.7,2052.7,0.001]
[1770649388953,4.86926035,2053.8,2052.7,0.001]
[1770649389656,8.33878276,2053.8,2052.7,0.001]